Cogmind - Beta 16 @@@ ROGUE MODE // 2025.12.01 @ 13:05:04 Player: Boris Result: Destroyed by as-94981 with Assembled Blade Performance ------------- Evolutions (0) 0 Regions Visited (4) 800 Robots Destroyed (41) 205 Value Destroyed (782) 782 Prototype IDs (24) 480 Alien Tech Used (0) 0 Bonus (342) 342 TOTAL SCORE: 2609 Bonus ------- Follower Combat Kills 42 Aligned with FarCom 300 Cogmind --------- Core Integrity 0/250 Matter 174/300 Energy 250/250 System Corruption 1% Temperature Cool (0) Movement Treading (160) Location -9/Mines Parts ------- > --- POWER (1) -------- Ion Engine > --- PROPULSION (2) --- Light Treads Light Treads > --- UTILITY (2) ------ Large Storage Unit Hacking Suite > --- WEAPON (2) ------- Assault Rifle Makeshift Hammer > --- INVENTORY (15) --- Light Treads High-capacity Matter Pod (200) Structural Scanner Transport Network Coupler Hacking Suite Supersonic Drone Bay (1/1) Guided Plasma Cannon Assault Rifle Field Lobotomy Kit (5) Blade Trap Blade Trap Blade Trap Blade Trap Peak State ------------ > --- POWER ------------ Ion Engine > --- PROPULSION ------- Light Treads Light Treads > --- UTILITY ---------- Large Storage Unit Hacking Suite > --- WEAPON ----------- Guided Plasma Cannon Assault Rifle > --- INVENTORY -------- Light Treads High-capacity Matter Pod Structural Scanner Transport Network Coupler Hacking Suite Supersonic Drone Bay Assault Rifle Field Lobotomy Kit Makeshift Hammer Blade Trap Blade Trap Blade Trap Blade Trap [Rating: 19] Favorites ----------- Power Light Ion Engine Engine Light Ion Engine Propulsion Light Treads Treads Light Treads Utility Hacking Suite Device Heat Sink Storage Large Storage Unit Hackware Hacking Suite Weapon Assault Rifle Energy Gun Improved EM Shotgun Energy Cannon Guided Plasma Cannon Ballistic Gun Assault Rifle Launcher Rocket Launcher Impact Weapon Makeshift Hammer Build | -11 -10 -10 -10 -9 ------- Run | Yrd Mat Min Exi Min Slots Evolved . | . . . . . Power . | . . . . . Propulsion . | . . . . . Utility . | . . . . . Weapon . | . . . . . Parts Attached 26 | 6 12 4 . 4 Power 3 | 1 . 2 . . Engine 3 | 1 . 2 . . Core . | . . . . . Reactor . | . . . . . Propulsion 7 | 2 3 2 . . Treads 7 | 2 3 2 . . Leg . | . . . . . Wheel . | . . . . . Hover . | . . . . . Flight . | . . . . . Utility 4 | 1 3 . . . Device 1 | . 1 . . . Storage 2 | 1 1 . . . Processor . | . . . . . Hackware 1 | . 1 . . . Protection . | . . . . . Artifact . | . . . . . Weapon 12 | 2 6 . . 4 Energy Gun 1 | . 1 . . . Energy Cannon 1 | . . . . 1 Ballistic Gun 8 | 2 5 . . 1 Ballistic Cannon . | . . . . . Launcher 1 | . . . . 1 Special Weapon . | . . . . . Impact Weapon 1 | . . . . 1 Slashing Weapon . | . . . . . Piercing Weapon . | . . . . . Special Melee Weapon . | . . . . . Unidentified Prototypes 1 | . 1 . . . Parts Lost 2 | . 1 . . 1 Power . | . . . . . Propulsion . | . . . . . Utility . | . . . . . Weapon 2 | . 1 . . 1 Highest Loss Streak 1 | . 1 . . 1 To Critical Strikes . | . . . . . Average Backups 9 | 1 8 12 10 9 Power . | . 1 . . . Propulsion 1 | . 1 2 1 1 Utility 5 | . 4 7 5 5 Weapon 2 | . 2 1 3 2 Tool/Special . | . . . . . Unused Backups 18 | . 5 3 2 8 Power 1 | . 1 . . . Propulsion 3 | . 1 1 . 1 Utility 11 | . 2 1 2 6 Weapon 1 | . 1 . . . Tool/Special 2 | . . 1 . 1 Average Slot Usage (%) 96 | . 99 100 74 98 Engine 14 | . 14 14 14 14 Treads 27 | . 27 28 28 28 Device 3 | . 6 . . . Storage 14 | . 14 14 14 14 Hackware 10 | . 6 14 14 14 Ballistic Gun 24 | . 28 28 3 25 Peak Build Rating 19 | 6 10 11 11 19 Average Rating 9 | 5 8 10 10 12 On Entrance 7 | . 6 10 11 11 Avg Prop Armor Cover (%) 10 | . 10 . . . Naked Turns . | . . . . . Heaviest Build 31 | 12 27 29 29 31 Greatest Support 40 | 40 40 40 40 40 Greatest Overweight (x) 1 | 1 . . . . Average Overweight (x) . | . . . . . Largest Inventory Capacity 15 | 8 15 15 15 15 Average Capacity 12 | 7 10 15 15 15 Most Carried 15 | 3 15 15 15 15 Average Carried 11 | 1 8 14 14 13 Final Capacity 15 | 8 15 15 15 15 Final Carried 15 | 3 15 15 15 13 Class Distribution -------------------- 100% | Mutant Dominant Class ---------------- Mutant | -10/Materials Mutant | -10/Mines Mutant | -10/Exiles Mutant | -9/Mines Resources | -11 -10 -10 -10 -9 ----------- Run | Yrd Mat Min Exi Min Matter Collected 1133 | 278 652 75 . 128 Remotely . | . . . . . Salvage Created 999 | 100 704 56 . 139 Parts 78 | 5 52 8 . 13 Haulers Intercepted 2 | . 2 . . . Recyclers Shooed . | . . . . . Parts Field Recycled . | . . . . . Retrieved Matter . | . . . . . Parts Self-Destructed . | . . . . . Prevented . | . . . . . Parts Restored . | . . . . . Kills | -11 -10 -10 -10 -9 ------- Run | Yrd Mat Min Exi Min Combat Hostiles Destroyed 32 | . 16 4 . 12 Melee 2 | . . . . 2 Guns 22 | . 16 4 . 2 Cannons 2 | . . . . 2 AOE 6 | . . . . 6 Classes Destroyed 10 | 2 6 . . 2 Worker 2 | . 2 . . . Tunneler 2 | 1 . . . 1 Hauler 2 | . 2 . . . Recycler 1 | 1 . . . . Operator 2 | . 2 . . . Watcher 3 | . 3 . . . Swarmer 16 | . 6 4 . 6 Grunt 11 | . 10 . . 1 Demolisher 2 | . . . . 2 Assembled 3 | . . . . 3 Best Kill Streak 5 | 2 5 3 . 4 Combat Bots Only 4 | . 4 3 . 3 Max Kills in Single Turn 3 | 1 2 1 . 3 Gunslinging . | . . . . . Exploded 3 | . . . . 3 Melee 1 | . . . . 1 Uniques/NPCs Destroyed . | . . . . . Combat | -11 -10 -10 -10 -9 -------- Run | Yrd Mat Min Exi Min Hostile Shots Fired 117 | . 57 11 . 49 Missed 32 | . 13 3 . 16 Hits 85 | . 44 8 . 33 Melee 13 | . . . . 13 Projectile 72 | . 44 8 . 20 AOE 2 | . . . . 2 Critical Strikes 1 | . 1 . . . Damage Taken 1339 | . 553 63 . 723 Core 276 | . 120 16 . 140 Absorbed by Shields . | . . . . . Regen/Repaired (Parts) 33 | . 33 . . . Core Remaining (%) 100 | 100 . . . . Volleys Fired 88 | 3 62 8 . 15 Largest 2 | 2 2 2 . 2 Hottest 120 | 40 43 40 . 120 Shots Fired 169 | 6 125 16 . 22 Gun 161 | 6 125 16 . 14 Cannon 3 | . . . . 3 Launcher 5 | . . . . 5 Special . | . . . . . Kinetic 161 | 6 125 16 . 14 Thermal 3 | . . . . 3 Explosive 5 | . . . . 5 Electromagnetic . | . . . . . Robot Hit Streak 14 | 4 14 4 . 4 Robot Miss Streak 5 | 1 5 1 . 3 Penetration Max . | . . . . . Secondary Targets 2 | . 1 1 . . Max Gunslinging Chain 1 | . 1 1 . . Shots Hit Robots 105 | 4 79 11 . 11 Core Hits 68 | 3 45 5 . 15 Critical Kills . | . . . . . Critical Parts Destroyed 2 | . 1 . . 1 Critical Strikes 2 | . 1 . . 1 Destroy 1 | . 1 . . . Smash 1 | . . . . 1 Melee Attacks 6 | . . . . 6 Impact 6 | . . . . 6 Slashing . | . . . . . Piercing . | . . . . . Sneak Attacks . | . . . . . Combat Hostiles . | . . . . . Follow-up Attacks . | . . . . . Damage Inflicted 2131 | 44 1144 145 . 798 Guns 1400 | 44 1144 142 . 70 Cannons 109 | . . . . 109 Explosions 467 | . . . . 467 Melee 151 | . . . . 151 Ramming 4 | . . 3 . 1 Kinetic 1400 | 44 1144 142 . 70 Thermal 109 | . . . . 109 Explosive 467 | . . . . 467 Electromagnetic . | . . . . . Impact 151 | . . . . 151 Slashing . | . . . . . Piercing . | . . . . . Highest Corruption 1 | . 1 1 1 1 Average Corruption 1 | . 1 1 1 1 Corruption Purged . | . . . . . Corruption Blocked . | . . . . . Effects 17 | . 5 8 1 3 Message Errors 6 | . . 3 1 2 Matter Fused 4 | . . 3 . 1 Heat Flow Errors 1 | . 1 . . . Energy Discharges 3 | . 1 2 . . Data Loss (major) 1 | . 1 . . . Misfires 2 | . 2 . . . Overload Shots . | . . . . . Overflow Damage 85 | . . . . 85 Projectiles . | . . . . . Explosions 15 | . . . . 15 Melee 70 | . . . . 70 Knockbacks . | . . . . . Impact . | . . . . . Kinetic . | . . . . . Secondary . | . . . . . Self-Inflicted Damage 101 | . . . . 101 Shots 3 | . . . . 3 Rammed 4 | . . 3 . 1 Targets Rammed 4 | . . 3 . 1 Kicked . | . . . . . Crushed . | . . . . . Highest Temperature 262 | . 262 . . 240 Average Temperature 115 | . 96 . . 132 Received Heat Transfer 251 | . 231 . . 20 Effects 1 | . . . . 1 Energy Bleed 1 | . . . . 1 Siege Activations . | . . . . . Martial Activations . | . . . . . Shielding Activations . | . . . . . Robots Disrupted . | . . . . . Combat Hostiles . | . . . . . Robots Corrupted . | . . . . . Combat Hostiles . | . . . . . Parts Fried . | . . . . . Impact Corruptions 2 | . . . . 2 Robots Melted . | . . . . . Combat Hostiles . | . . . . . Parts Melted 1 | . . . . 1 Heat Transferred 240 | . . . . 240 Parts Sabotaged . | . . . . . Parts Stolen . | . . . . . Parts Stripped . | . . . . . Power Chain Reactions . | . . . . . Alert | -11 -10 -10 -10 -9 ------- Run | Yrd Mat Min Exi Min Maximum Alert Level 1 | . . . . 1 Low Security (%) 99 | 100 100 100 . 95 Level 1 . | . . . . 4 Level 2 . | . . . . . Level 3 . | . . . . . Level 4 . | . . . . . Level 5 . | . . . . . High Security . | . . . . . Max Security . | . . . . . Peak Influence 214 | 10 174 88 . 214 Initial 18 | . . 18 . . Average 50 | . 77 11 . 55 Influence Increases 985 | 10 482 108 . 385 Destroy 0b10 Robot/C 620 | . 320 80 . 220 Destroy 0b10 Robot/NC 60 | 10 45 . . 5 Destroy Leader 120 | . 70 10 . 40 Allied During Kill 81 | . . 18 . 63 Successful Hack 17 | . 17 . . . Disable Machine 15 | . . . . 15 Destroy Structure 42 | . . . . 42 Lose Combat Pursuer 30 | . 30 . . . Influence Decreases 849 | 10 433 111 46 249 Entered New Map 77 | . . 31 46 . Time Decay 652 | 10 423 80 . 139 Lost Part 20 | . 10 . . 10 Lost Ally 100 | . . . . 100 Squads Dispatched 2 | . 2 . . . Investigation . | . . . . . Extermination . | . . . . . Reinforcement 2 | . 2 . . . Assault . | . . . . . Garrison . | . . . . . Intercept . | . . . . . Searches Triggered . | . . . . . Construction Impeded . | . . . . . Haulers Reinforced . | . . . . . Active Scanning Responses . | . . . . . Cargo Convoy Interrupts . | . . . . . Stealth | -11 -10 -10 -10 -9 --------- Run | Yrd Mat Min Exi Min Distress Signals 4 | . 3 1 . . Communications Jammed . | . . . . . Distress Signals . | . . . . . Times Spotted 56 | . 28 6 . 22 Peak Tracking Total 9 | . 4 3 . 9 Tactical Retreats 3 | . 2 . . 1 Traps | -11 -10 -10 -10 -9 ------- Run | Yrd Mat Min Exi Min Traps Triggered 2 | . 2 . . . Indirectly . | . . . . . Trap Hack Attempts . | . . . . . Triggered . | . . . . . Disarmed . | . . . . . Reprogrammed . | . . . . . Reused . | . . . . . Traps Extracted . | . . . . . Installed . | . . . . . Triggered . | . . . . . Most Traps Carried 4 | . . 4 4 4 Machines | -11 -10 -10 -10 -9 ---------- Run | Yrd Mat Min Exi Min Machines Disabled 1 | . . . . 1 Max in Single Turn 1 | . . . . 1 Machines Repaired . | . . . . . Machines Dismantled . | . . . . . Machines Sabotaged . | . . . . . Overloaded Fab Kills . | . . . . . Hacking | -11 -10 -10 -10 -9 --------- Run | Yrd Mat Min Exi Min Machines Accessed 11 | . 8 1 2 . Terminals 6 | . 5 1 . . Fabricators . | . . . . . Repair Stations 1 | . 1 . . . Recycling Units 2 | . 2 . . . Scanalyzers . | . . . . . Garrison Access . | . . . . . Total Hacks 36 | . 32 2 2 . Successful 17 | . 15 . 2 . Failed 19 | . 17 2 . . Catastrophic 2 | . 2 . . . Database Lockouts . | . . . . . Manual 26 | . 21 4 1 . Terminals 24 | . 22 2 . . Fabricators . | . . . . . Repair Stations 3 | . 3 . . . Recycling Units 7 | . 7 . . . Scanalyzers . | . . . . . Garrison Access . | . . . . . Terminal Hacks 7 | . 5 . 2 . Record 1 | . . . 1 . Robot Schematic 1 | . 1 . . . Robot Analysis 2 | . 2 . . . Terminal Index 1 | . 1 . . . Locate Traps 1 | . 1 . . . Proto ID Catalog 1 | . . . 1 . Fabricator Hacks . | . . . . . Repair Station Hacks 2 | . 2 . . . Scan Component 1 | . 1 . . . Repair 1 | . 1 . . . Recycling Unit Hacks 2 | . 2 . . . Retrieve Components 2 | . 2 . . . Scanalyzer . | . . . . . Garrison Access Hacks . | . . . . . Unauthorized Hacks 6 | . 6 . . . Terminals 6 | . 6 . . . Botnet 1 | . 1 . . . Skim 5 | . 5 . . . Fabricators . | . . . . . Repair Stations . | . . . . . Recycling Units . | . . . . . Scanalyzers . | . . . . . Garrison Access . | . . . . . Data Cores Recovered . | . . . . . Used . | . . . . . Hacking Detections 8 | . 7 1 . . Full Trace Events . | . . . . . Feedback Events . | . . . . . Feedback Blocked . | . . . . . Robot Schematics Acquired 1 | . 1 . . . Robots Built . | . . . . . Authchips . | . . . . . Time . | . . . . . Total Robot Build Rating . | . . . . . Part Schematics Acquired . | . . . . . Parts Built . | . . . . . Authchips . | . . . . . Time . | . . . . . Total Part Build Rating . | . . . . . Part Studies Acquired . | . . . . . Parts Repaired 1 | . 1 . . . Time 36 | . 36 . . . Parts Recycled . | . . . . . Recycled Matter . | . . . . . Retrieved Matter . | . . . . . Retrieved Components 5 | . 5 . . . Parts Scanalyzed . | . . . . . Part Schematics Acquired . | . . . . . Parts Damaged . | . . . . . Bothacking | -11 -10 -10 -10 -9 ------------ Run | Yrd Mat Min Exi Min Used RIF Installer . | . . . . . Robots Hacked . | . . . . . Non-combat . | . . . . . Combat . | . . . . . Robot Hacks Applied . | . . . . . Relay Couplers Released . | . . . . . Fabnet Peak Effective % . | . . . . . Robots Rewired . | . . . . . Allies Hacked . | . . . . . Hacks Repelled . | . . . . . Allies | -11 -10 -10 -10 -9 -------- Run | Yrd Mat Min Exi Min Total Allies 6 | . . 4 . 2 Largest Group 5 | . . 4 4 5 Highest-Rated Group 82 | . . 71 71 82 Highest-Rated Ally 31 | . . 31 31 31 Total Orders . | . . . . . Ally Attacks 21 | . . . . 21 Total Damage 154 | . . . . 154 Kills 2 | . . . . 2 Allies Corrupted . | . . . . . Allies Melted . | . . . . . Intel | -11 -10 -10 -10 -9 ------- Run | Yrd Mat Min Exi Min Active Infowar (turns) . | . . . . . Robot Analysis Total 2 | . 2 . . . Derelict Logs Recovered 4 | . . 2 . 2 Drone Launches . | . . . . . Drone Recoveries . | . . . . . Exploration | -11 -10 -10 -10 -9 ------------- Run | Yrd Mat Min Exi Min Turns Passed 3256 | 95 1424 937 347 453 Spaces Moved 1716 | 50 658 552 214 242 Core 6 | 6 . . . . Treads 1710 | 44 658 552 214 242 Legs . | . . . . . Wheels . | . . . . . Hover . | . . . . . Flight . | . . . . . Fastest Speed 50 | 50 160 160 160 160 Average Speed 159 | 149 160 160 160 160 Slowest Speed 160 | 160 160 160 160 160 Overloaded Moves . | . . . . . Propulsion Burnouts . | . . . . . Robots Hopped . | . . . . . Potential Cave-ins . | . . . . . Cave-ins Triggered . | . . . . . Exploration Rate (%) 62 | 4 98 97 61 54 Regions Visited 4 Branch Regions 3 Pre-discovered Areas 5 | . 1 3 1 . Known Exits Taken 1 | . . . 1 . Unknown Exits Taken 3 | 1 1 1 . . Scrap Searched 2 | . . 1 . 1 Spaces Dug 11 | . . . . 11 Terrain Destroyed 52 | . . . . 52 Melee . | . . . . . Projectile . | . . . . . AOE 52 | . . . . 52 Terrain Rammed . | . . . . . Walls Destroyed . | . . . . . Machines Disabled . | . . . . . Actions | -11 -10 -10 -10 -9 --------- Run | Yrd Mat Min Exi Min Total 2063 | 61 912 591 222 277 Wait 155 | . 144 11 . . Move 1712 | 49 657 551 213 242 Hop . | . . . . . Pick Up 33 | 3 19 6 3 2 Fast Attach 9 | 6 3 . . . Attach 5 | . 2 . . 3 Detach 3 | . 1 . 2 . Swap 21 | . 10 4 . 7 Drop 27 | . 14 8 4 1 Fire 88 | 3 62 8 . 15 Melee 6 | . . . . 6 Ram . | . . . . . Kick . | . . . . . Crush 4 | . . 3 . 1 Escape Stasis . | . . . . . Rewire . | . . . . . Trap . | . . . . . Miscellaneous . | . . . . . Route ------- -11/Scrapyard -10/Materials (discovered 4 exits: [*Mat x3] / *Min) -10/Mines (discovered 4 exits: [*Mat x2] / *Exi / [*Sub]) -10/Exiles (discovered 2 exits: *Min x2) -9/Mines History --------- Turn | Location | Event 6 | -11/Scrapyard | Discovered new exit (range 16) 96 | -11/Scrapyard | Entered Materials 309 | -10/Materials | Build established: Mutant 370 | -10/Materials | Repaired Broken Lgt. Treads 479 | -10/Materials | Discovered new exit (range 5) 855 | -10/Materials | Discovered new exit (range 4) 919 | -10/Materials | Discovered new exit (range 8) 1054 | -10/Materials | Discovered new exit (range 6) 1324 | -10/Materials | Learned Storage trap positions 1365 | -10/Materials | Learned location of 1 exit from Storage 1397 | -10/Materials | Learned 4 Recycling zone layouts 1435 | -10/Materials | Learned 2 Storage zone layouts 1480 | -10/Materials | Learned location of 1 exit from Storage 1520 | -10/Materials | Entered Mines 1523 | -10/Mines | Met a Derelict bent on vengeance 1527 | -10/Mines | Core integrity fell below 50% 1531 | -10/Mines | Escorted by a lone wolf Derelict 1551 | -10/Mines | Learned location of Storage (-8) 1716 | -10/Mines | Discovered new exit (range 5) 1806 | -10/Mines | Received a Rocket Launcher from a helpful Derelict 1844 | -10/Mines | Found a Scrap Suit stashed away for nefarious purposes 1851 | -10/Mines | Found Scrap Suit 1860 | -10/Mines | Discovered new exit (range 13) 1902 | -10/Mines | Discovered new exit (range 8) 2006 | -10/Mines | Found a hidden stash of uninstalled traps 2123 | -10/Mines | Learned location of Zion (-6) 2248 | -10/Mines | Assisted by bots powering up and referring to "LRC-V3" 2299 | -10/Mines | Learned Materials stockpile data 2439 | -10/Mines | Deemed a non-threat by the Exiles lab entrance 2439 | -10/Mines | Discovered new exit (range 5) 2457 | -10/Mines | Entered Exiles 2457 | -10/Exiles | Accompanied by 4 allies 2458 | -10/Exiles | Identified exit to Mines 2499 | -10/Exiles | Met 8R-AWN 2527 | -10/Exiles | Met EX-HEX 2571 | -10/Exiles | Met EX-BIN 2591 | -10/Exiles | Aligned with FarCom system 2592 | -10/Exiles | Given EX-Vault access code 2631 | -10/Exiles | Opened EX-Vault 2640 | -10/Exiles | Found Supersonic Drone Bay 2642 | -10/Exiles | Found Field Lobotomy Kit 2648 | -10/Exiles | Found Gui. Plasma Cannon 2681 | -10/Exiles | Warned to stay clear of 0b10 Research branches 2700 | -10/Exiles | Exiles lab attacked by MAIN.C 2804 | -10/Exiles | Stole three prototypes: Supersonic Drone Bay, Gui. Plasma Cannon, Field Lobotomy Kit 2804 | -10/Exiles | Entered Mines 2804 | -9/Mines | Accompanied by 3 allies 2893 | -9/Mines | A weapon hastily lodged in a ceiling crevice suddenly fell to the ground 2905 | -9/Mines | Learned Materials terminal intel 2977 | -9/Mines | Learned location of 1 exit from Lower Caves 3171 | -9/Mines | Assembled infested the area 3176 | -9/Mines | Assisted by a Guerilla fighting off Assembled 3224 | -9/Mines | Lost 6 allies 3251 | -9/Mines | Core integrity fell below 20% 3257 | -9/Mines | Destroyed by as-94981 with Assembled Blade Last Messages --------------- 03232_ U-05 Engineer lays Concrete. 03233_ U-05 Engineer builds a Wall. 03234_ The unstable cave ceiling collapses. 03234_ K-01 Serf collects debris. 03234_ U-05 Engineer builds a Wall. 03237_ K-01 Serf collects debris. 03237_ U-05 Engineer lays Concrete. 03238_ U-05 Engineer builds a Wall. 03240_ The unstable cave ceiling collapses. 03241_ K-01 Serf collects debris. 03245_ The unstable cave ceiling collapses. 03245_ Sml. Laser crushed. 03247_ K-01 Serf destroyed. 03248_ Destroyed Asb. Hover Unit. 03248_ as-92112 system corrupted by crushing effect. 03250_ as-92112 suffers critical hit (Smash). 03250_ Destroyed Asb. Maul. 03250_ as-92112 system corrupted by crushing effect. 03250_ as-92112 destroyed. 03252_ as-05925 destroyed. Map ----- +----------------------------------------------------+ | ???????????????????????????????????????????????# | | ???????????????????????????????????????????????### | | ?????????????????????????????????????????????????? | | ?????????????????????????????????????????????????? | | ???????????????????????????????????????? ????????? | | ?????????????????????????????????????# ???????? | | ???????????????????????????????????## ???????? | | ????????????????????#????????????? ???????? | | ???????????????????? ?????????????? ##?????? | | ???????????????????# #?????????????? ?????? | | ???????????????????# #??????????????? ?????? | | ???????????????????# #?#######???????? ?????? | | ????????#??????????#"#?# #????????# ?????? | | ????????# ?????????#%### #???????## ?????? | | ?????#### #######??# # #[ ##??????# ##???? | | ?????# #### # * #?????## #???? | | ???????# ## # # % #?????# #???? | | ???????# ## # # # #?????# #???? | | ???????## % #% #?????# ##??? | | ???????# # # = *==# #?????## ## ##?? | | ???????# [ %*%#= #???????????## ##? | | ???????### % = |a%*% ##???????##### #? | | ?????????### ##* # =| #??????## #? | | ???????????# ?# #a a# ######??# ## | | ??????????# #?##### ###aa #??# # | | ??????????# ??????######@a #??## | | ??????????# ???????????######## #???## | | ?????????? ???????????????????# #???## # | | ?????????? ???????????????????# #??## ## | | ????????? ????????????????????# #?## #? | | ????????? ????????######??????# ### #? | | ????????# ????????## ##?????# # #? | | ?????????????????## #????## % #### ##? | | ?????????????????# #??### #####??## ##?? | | ?????????????????# ##?### % ##???????# #??? | | ?????????????????## ####?### ##????????# #??? | | ??????????????????# #????##= ##??? #?# ?? | | ??????????????????# #????# % ## ##### ? | | ??????????????????# ######% #??? | | ??????????????????# ???? | | ??????????????????# ????# | | ??????????????????###### #### ?????# | | ???????????????????????# ##?## ??????? | | ????????################ #???## ??????? | | ????????# #????## ####??????? | | ????????# ############## #??????# #?????????? | | ????????# #????????????# #???????#### #?????????? | | ????????# #????????????# #??????????? #?????????? | | ????????# ###??????????# #???????????? #?????????? | | ???????## ##?????????# #???????????????????????? | +----------------------------------------------------+ Best States ------------- Heat Dissipation 35 Energy Generation 10 Energy Capacity 250 Matter Stores 300 Matter Capacity 300 Sight Range 16 Terrain Scan Density 10 Evasion (%) 40 Recoil Reduction 2 Offensive Hacking 10 Item Schematics ----------------- None Robot Schematics ------------------ M-13 Machinist | -10/Materials | Hacked Fabricated ------------ Nothing Repaired ---------- Lgt. Treads | 76% | -10/Materials | Broken Studied --------- None Alien Tech Used ----------------- None Achievements -------------- None Challenges ------------ None Game ------ Seed VisualCloakingDeconstructor Manual? 0 Play Time 00:17:31 Cumulative 664.1 hours Start 2025.12.01 @ 12:47:56 End 2025.12.01 @ 13:05:04 Sessions 1 Manual Loads 0 Difficulty Rogue Special Mode None Game No. 222 Rogue 206 Adventurer 15 Explorer 1 Win Type - Total 39 Types 10/3/10/2/2/0/6/3/1/2 Lore% 94 Gallery% 88 Achievement% 65 Wizard Run 0 Options --------- Layout 0 ASCII 0 Keyboard 0 Movement Numpad Keybinds 0 Fullscreen 1 Font 18/SmallcapsGlow Map View 76x50 Zoom Use 0% Tactical HUD 1 Map Filters NONE Filters NONE Steam 1 RUN: 313c356f-263f-4918-aa67-9302a66fb303